[Event "FIDE Open World Rapid 2024"]
[Site "New York"]
[Date "2024.12.28"]
[Round "8.10"]
[White "Samadov, Read"]
[Black "Salem, A.R. Saleh"]
[Result "0-1"]
[ECO "A34"]
[WhiteElo "2501"]
[BlackElo "2622"]
[Annotator "ChessBase"]
[PlyCount "98"]
[EventDate "2024.12.14"]
[EventType "swiss"]
[EventCountry "USA"]
[SourceTitle "playchess.com"]
[Source "ChessBase"]
[SourceQuality "1"]
[TimeControl "900+10"]

1. Nf3 {[%emt 0:00:05]} c5 {[%emt 0:00:01]} 2. c4 {[%emt 0:00:04]} Nf6 {[%emt 0:00:01]} 3. Nc3 {[%emt 0:00:08]} d5 {[%emt 0:00:02]} 4. cxd5 {[%emt 0:00:05]} Nxd5 {[%emt 0:00:01]} 5. e4 {[%emt 0:00:08]} Nb4 {[%emt 0:00:02]} 6. Bc4 {[%emt 0:00:06]} Nd3+ {[%emt 0:00:02]} 7. Ke2 {[%emt 0:00:03]} Nf4+ {[%emt 0:00:02]} 8. Kf1 {[%emt 0:00:03]} Ne6 {[%emt 0:00:03]} 9. h4 {[%emt 0:01:57]} Nc6 {[%emt 0:00:02]} 10. d3 {[%emt 0:00:48]} h5 {[%emt 0:00:03]} 11. Ne2 {[%emt 0:01:13]} g6 {[%emt 0:00:23]} 12. Be3 {[%emt 0:01:18]} Bg7 {[%emt 0:00:20]} 13. Qd2 {[%emt 0:01:23]} O-O {[%emt 0:00:34]} 14. Rd1 {[%emt 0:01:23]} Qb6 {[%emt 0:04:27]} 15. Nc3 {[%emt 0:01:12]} Ned4 {[%emt 0:00:17]} 16. Nd5 {[%emt 0:00:45]} Qd8 {[%emt 0:01:33]} 17. Nxd4 {[%emt 0:00:34]} Nxd4 {[%emt 0:00:02]} 18. Bg5 {[%emt 0:00:19]} Re8 {[%emt 0:00:02]} 19. a3 {[%emt 0:01:58]} Be6 {[%emt 0:00:42]} 20. b4 {[%emt 0:00:25]} Rc8 {[%emt 0:01:48]} 21. a4 {[%emt 0:01:27]} Bxd5 {[%emt 0:02:08]} 22. Bxd5 {[%emt 0:00:14]} cxb4 {[%emt 0:00:01]} 23. Qxb4 {[%emt 0:00:12]} Qd7 {[%emt 0:00:02]} 24. Rh3 {[%emt 0:01:31]} Rc2 {[%emt 0:01:09]} 25. Be3 {[%emt 0:00:33]} a5 {[%emt 0:02:32]} 26. Qxa5 {[%emt 0:00:14]} e6 {[%emt 0:00:03]} 27. Bc4 {[%emt 0:00:07]} Rb2 {[%emt 0:00:30]} 28. Rg3 {[%emt 0:00:56]} b6 {[%emt 0:00:16]} 29. Qa6 {[%emt 0:00:12]} Qc6 {[%emt 0:00:43]} 30. Qa7 {[%emt 0:00:22]} Bf6 {[%emt 0:00:37]} 31. Bxd4 {[%emt 0:00:09]} Bxd4 {[%emt 0:00:10]} 32. Rf3 {[%emt 0:00:01]} Rf8 {[%emt 0:00:17]} 33. Re1 {[%emt 0:00:11]} Qd6 {[%emt 0:00:09]} 34. e5 {[%emt 0:00:11]} Bxe5 {[%emt 0:00:32]} 35. Qb7 {[%emt 0:00:11]} Bc3 {[%emt 0:00:08]} 36. Rd1 {[%emt 0:00:15]} Qh2 {[%emt 0:00:47]} 37. Rh3 {[%emt 0:00:02]} Qf4 {[%emt 0:00:13]} 38. Qf3 {[%emt 0:00:06]} Qe5 {[%emt 0:00:21]} 39. Qe3 {[%emt 0:00:20]} Qd4 {[%emt 0:00:22]} 40. Bb5 {[%emt 0:00:24]} Rd8 {[%emt 0:00:05]} 41. Kg1 {[%emt 0:00:12]} Qg4 {[%emt 0:00:05]} 42. Rf1 {[%emt 0:00:09]} Bd4 {[%emt 0:00:06]} 43. Qc1 {[%emt 0:00:08]} Rd5 {[%emt 0:00:16]} 44. Rf3 {[%emt 0:00:07]} Rf5 {[%emt 0:00:07]} 45. Rxf5 {[%emt 0:00:15]} Qxf5 {[%emt 0:00:01]} 46. Qe1 {[%emt 0:00:03]} Qf4 {[%emt 0:00:02]} 47. Bd7 {[%emt 0:00:11]} Qxh4 {[%emt 0:00:11]} 48. Bc6 {[%emt 0:00:10]} g5 {[%emt 0:00:15]} 49. Be4 {[%emt 0:00:18]} g4 {[%emt 0:00:03]} 0-1

[Event "FIDE Open World Rapid 2024"]
[Site "New York"]
[Date "2024.12.27"]
[Round "8.11"]
[White "Abdusattorov, Nodirbek"]
[Black "Pichot, Alan"]
[Result "1-0"]
[ECO "C50"]
[WhiteElo "2777"]
[BlackElo "2637"]
[Annotator "TA"]
[PlyCount "65"]
[EventDate "2024.12.14"]
[EventType "swiss"]
[EventCountry "USA"]
[SourceTitle "playchess.com"]
[Source "ChessBase"]
[SourceQuality "1"]
[TimeControl "900+10"]

{[%evp 14,65,8,0,15,9,19,22,22,15,16,16,29,27,30,30,16,18,25,3,11,0,25,0,0,0,43,54,49,56,48,29,37,49,130,147,147,107,120,116,145,136,144,137,109,104,151,-41,-41,-39,29962,308,283,249]} 1. e4 {[%emt 0:00:02]} e5 {[%emt 0:00:02]} 2. Nf3 {[%emt 0:00:02]} Nc6 {[%emt 0:00:02]} 3. Bc4 {[%emt 0:00:03]} Bc5 {[%emt 0:00:09]} 4. d3 {[%emt 0:00:03]} h6 {[%emt 0:00:21]} 5. Nc3 {[%emt 0:00:12]} Nf6 {[%emt 0:00:08]} 6. O-O {[%emt 0:00:13]} O-O {[%emt 0:00:15]} 7. h3 {[%emt 0:00:16]} d6 {[%emt 0:00:18]} 8. Na4 {[%emt 0:00:02]} Bb6 {[%emt 0:00:27]} 9. a3 {[%emt 0:00:05]} Be6 {[%emt 0:00:51]} 10. Bxe6 {[%emt 0:00:06]} fxe6 {[%emt 0:00:02]} 11. b4 {[%emt 0:00:22]} (11. Bd2 Ne7 12. b4 Ng6 13. Nxb6 axb6 14. a4) 11... Qe8 {[%emt 0:01:02]} (11... Nd4 12. Nxd4 exd4 13. Nxb6 axb6 14. Bb2 e5) 12. c3 {[%emt 0:00:07]} Qg6 {[%emt 0:00:47]} (12... Ne7 13. Nxb6 axb6 14. a4 Ng6) 13. Ra2 {[%emt 0:00:32]} Nh5 {[%emt 0:01:26]} 14. Kh2 {[%emt 0:01:45]} (14. Nxb6 {simplifies} axb6 15. a4 Qe8 16. Re1) 14... Nf4 {[%emt 0:00:44][%csl Gf4][%cal Rg6g2]} 15. g3 {[%emt 0:00:21]} Nh5 {[%emt 0:00:29]} 16. Nxb6 {[%emt 0:00:14]} axb6 {[%emt 0:00:07]} 17. Be3 {[%emt 0:00:28]} b5 {[%emt 0:02:13]} 18. Nh4 {[%emt 0:01:01]} Qf7 {[%emt 0:00:24]} 19. a4 {[%emt 0:01:57]} g5 {[%emt 0:02:04]} 20. Ng2 {[%emt 0:00:06]} Nf6 {[%emt 0:01:06]} 21. a5 {[%emt 0:01:46]} Kh7 {[%emt 0:01:08]} 22. f4 {[%emt 0:00:52]} exf4 {[%emt 0:01:23]} 23. gxf4 {[%emt 0:00:01][%cal Bg3f4,Bf4g5,Bg5f6][%mdl 32]} e5 {[%emt 0:00:12]} (23... Qh5 $14) 24. fxg5 $1 $16 {[%emt 0:00:47]} Qxa2 {[%emt 0:00:15]} 25. gxf6 {[%emt 0:00:17] White threatens Qh5 and mate.} (25. Rxf6 Rxf6 26. gxf6 Rf8 $17) 25... Qe6 {[%emt 0:01:02]} 26. Qf3 {[%emt 0:00:20][%cal Oe3h6]} Rf7 {[%emt 0:00:43] [#]} 27. Bxh6 $1 {[%emt 0:00:33]} Kxh6 {[%emt 0:00:51] [#]} 28. Ne3 $1 $40 {[%emt 0:00:07][%mdl 128] White goes for the king.} Ne7 {[%emt 0:00:37] [#] Strongly threatening ...Rg8.} 29. Qg3 $1 {[%emt 0:01:42][%mdl 1024] White has strong compensation. White is more active.} Ng6 {[%emt 0:00:27][%cal Oh6h7] Repels Qh4+} (29... Rxf6 $2 30. Rxf6+ Qxf6 31. Ng4+ Kg7 32. Nxf6+ Kxf6 33. Qf3+ Kg7 34. Qg4+ Ng6 35. Qd7+ Kh6 36. Qxc7 $18 (36. Qxb5 Rg8 $18)) 30. Nf5+ $2 {[%emt 0:01:06] Dancing on a razor blade.} (30. Nd5 $16 {Threatens to win with Rf5.} Raf8 31. Qe3+ Kh7 32. Qg5) 30... Kh7 $15 {[%emt 0:00:01]} 31. Qg5 {[%emt 0:00:02]} Rh8 $2 {[%emt 0:00:16][%mdl 8192]} (31... Kh8 $15 32. Qxg6 Qxf6) 32. Rg1 $2 {[%emt 0:00:36]} (32. Qh6+ {mates} Kg8 33. Ne7+ (33. Qxg6+ Kf8 $16) 33... Qxe7 34. Qxg6+ (34. fxe7 Rxh6 35. e8=Q+ Rf8 $18) 34... Rg7 35. fxe7 Rxg6 36. Rf8+ (36. e8=R+ Kg7 $18) (36. e8=Q+ Kh7 $18) 36... Kg7 37. Rxh8 (37. e8=R $2 {too greedy.} Rxf8 38. Re7+ Kf6 $19) 37... Kxh8 38. e8=Q+ (38. e8=R+ Rg8 $18) 38... Rg8 39. Qxb5 (39. Qh5+ Kg7 $18)) 32... Kg8 $18 {[%emt 0:00:21]} ({Stronger than} 32... Rxf6 33. Qh6+ Kg8 34. Qg7#) (32... Qa2+ 33. Kh1 (33. Rg2 Qxg2+ 34. Kxg2 Nf4+ 35. Kf3 Nxh3 $18) 33... Kg8 34. Qxg6+ Kf8 35. Nh6 $18) 33. Ne7+ {[%emt 0:00:05]} 1-0

[Event "FIDE Open World Rapid 2024"]
[Site "New York"]
[Date "2024.12.27"]
[Round "8.11"]
[White "Dudin, Gleb"]
[Black "Safarli, Eltaj"]
[Result "0-1"]
[ECO "E48"]
[WhiteElo "2506"]
[BlackElo "2610"]
[Annotator "ChessBase"]
[PlyCount "72"]
[EventDate "2024.12.14"]
[EventType "swiss"]
[EventCountry "USA"]
[SourceTitle "playchess.com"]
[Source "ChessBase"]
[SourceQuality "1"]
[TimeControl "900+10"]

1. d4 {[%emt 0:02:40]} Nf6 {[%emt 0:00:01]} 2. c4 {[%emt 0:00:02]} e6 {[%emt 0:00:09]} 3. Nc3 {[%emt 0:00:02]} Bb4 {[%emt 0:00:01]} 4. e3 {[%emt 0:00:01]} O-O {[%emt 0:00:08]} 5. Bd3 {[%emt 0:00:03]} d5 {[%emt 0:00:03]} 6. a3 {[%emt 0:00:05]} dxc4 {[%emt 0:00:09]} 7. Bxc4 {[%emt 0:00:02]} Be7 {[%emt 0:00:06]} 8. Qe2 {[%emt 0:00:07]} a6 {[%emt 0:00:54]} 9. Nf3 {[%emt 0:00:04]} c5 {[%emt 0:00:06]} 10. dxc5 {[%emt 0:00:07]} Bxc5 {[%emt 0:00:02]} 11. e4 {[%emt 0:00:13]} b5 {[%emt 0:01:54]} 12. Bd3 {[%emt 0:00:02]} e5 {[%emt 0:00:31]} 13. Nxe5 {[%emt 0:01:37]} Re8 {[%emt 0:00:04]} 14. Nf3 {[%emt 0:00:03]} Nc6 {[%emt 0:02:08]} 15. Be3 {[%emt 0:01:29]} Bxe3 {[%emt 0:02:27]} 16. Qxe3 {[%emt 0:00:03]} Ng4 {[%emt 0:00:01]} 17. Qe2 {[%emt 0:00:40]} Nge5 {[%emt 0:00:02]} 18. Nxe5 {[%emt 0:00:46]} Nxe5 {[%emt 0:00:02]} 19. Rd1 {[%emt 0:01:01]} Bg4 {[%emt 0:00:14]} 20. f3 {[%emt 0:00:28]} Be6 {[%emt 0:00:04]} 21. Bxb5 {[%emt 0:02:00]} Qh4+ {[%emt 0:00:09]} 22. g3 {[%emt 0:00:02]} Qf6 {[%emt 0:00:04]} 23. f4 {[%emt 0:01:25]} axb5 {[%emt 0:00:07]} 24. fxe5 {[%emt 0:00:02]} Qxe5 {[%emt 0:00:13]} 25. Qxb5 {[%emt 0:00:39]} Qc7 {[%emt 0:00:02]} 26. Qe2 {[%emt 0:01:45]} Rab8 {[%emt 0:01:46]} 27. Rd2 {[%emt 0:00:47]} Bh3 {[%emt 0:03:16]} 28. Kf2 {[%emt 0:00:50]} Qb6+ {[%emt 0:01:31]} 29. Qe3 {[%emt 0:00:04]} Qf6+ {[%emt 0:00:02]} 30. Qf4 {[%emt 0:00:04]} Qb6+ {[%emt 0:00:05]} 31. Qe3 {[%emt 0:00:02]} Qf6+ {[%emt 0:00:04]} 32. Qf4 {[%emt 0:00:03]} Qb6+ {[%emt 0:00:08]} 33. Kf3 {[%emt 0:01:10]} f5 {[%emt 0:00:04]} 34. exf5 {[%emt 0:01:20]} Qc6+ {[%emt 0:00:43]} 35. Rd5 {[%emt 0:01:00]} Rxb2 {[%emt 0:00:06]} 36. Rc1 {[%emt 0:00:10]} Bg2+ {[%emt 0:00:36]} 0-1

[Event "FIDE Open World Rapid 2024"]
[Site "New York"]
[Date "2024.12.27"]
[Round "8.12"]
[White "Mamedyarov, Shakhriyar"]
[Black "Sadhwani, Raunak"]
[Result "1/2-1/2"]
[ECO "D00"]
[WhiteElo "2738"]
[BlackElo "2673"]
[Annotator "TA"]
[PlyCount "31"]
[EventDate "2024.12.14"]
[EventType "swiss"]
[EventCountry "USA"]
[SourceTitle "playchess.com"]
[Source "ChessBase"]
[SourceQuality "1"]
[TimeControl "900+10"]

{[%evp 9,31,0,7,6,0,0,0,0,1,0,12,0,0,-8,0,-18,-11,-4,-4,-2,0,-10,-8,-2]} 1. d4 {[%emt 0:00:01]} Nf6 {[%emt 0:00:01]} 2. Bg5 {[%emt 0:00:02]} d5 {[%emt 0:00:02]} 3. e3 {[%emt 0:00:02]} c5 {[%emt 0:00:02]} 4. Bxf6 {[%emt 0:00:05]} gxf6 {[%emt 0:00:02]} 5. dxc5 {[%emt 0:00:01]} e6 {[%emt 0:00:04]} 6. Nf3 {[%emt 0:00:03]} Bxc5 {[%emt 0:00:02]} 7. Be2 {[%emt 0:00:02]} O-O {[%emt 0:00:04]} 8. O-O {[%emt 0:00:03]} Be7 {[%emt 0:00:01]} 9. c4 {[%emt 0:00:09]} dxc4 {[%emt 0:00:02]} 10. Qc2 {[%emt 0:01:32]} Qc7 {[%emt 0:00:01]} 11. Nbd2 {[%emt 0:00:15][%cal Of1d1,Bb1d2,Bd2c4,Bc4a3,Ba3c2][%mdl 32]} Bd7 {[%emt 0:01:02]} 12. Rfc1 {[%emt 0:00:27]} Rc8 {[%emt 0:00:48]} 13. Nxc4 {[%emt 0:01:46]} b5 {[%emt 0:00:35]} 14. Na3 $1 {[%emt 0:02:10]} Qxc2 {[%emt 0:00:03]} 15. Rxc2 {[%emt 0:00:41]} Rxc2 {[%emt 0:00:05]} 16. Nxc2 {[%emt 0:00:02]} 1/2-1/2

[Event "FIDE Open World Rapid 2024"]
[Site "New York"]
[Date "2024.12.28"]
[Round "8.12"]
[White "Barbosa, Oliver"]
[Black "Druska, Juraj"]
[Result "1-0"]
[ECO "E12"]
[WhiteElo "2451"]
[BlackElo "2423"]
[Annotator "ChessBase"]
[PlyCount "99"]
[EventDate "2024.12.14"]
[EventType "swiss"]
[EventCountry "USA"]
[SourceTitle "playchess.com"]
[Source "ChessBase"]
[SourceQuality "1"]
[TimeControl "900+10"]

1. d4 {[%emt 0:00:05]} Nf6 {[%emt 0:00:08]} 2. c4 {[%emt 0:00:03]} b6 {[%emt 0:00:17]} 3. Nf3 {[%emt 0:01:14]} Bb7 {[%emt 0:00:25]} 4. Nc3 {[%emt 0:00:03]} e6 {[%emt 0:01:19]} 5. a3 {[%emt 0:00:35]} Ne4 {[%emt 0:00:31]} 6. Bd2 {[%emt 0:00:16]} Be7 {[%emt 0:00:35]} 7. d5 {[%emt 0:00:15]} Nxd2 {[%emt 0:01:31]} 8. Qxd2 {[%emt 0:00:02]} O-O {[%emt 0:01:05]} 9. e4 {[%emt 0:01:59]} d6 {[%emt 0:00:38]} 10. Bd3 {[%emt 0:00:48]} Nd7 {[%emt 0:00:02]} 11. O-O {[%emt 0:00:05]} Bf6 {[%emt 0:00:31]} 12. Bc2 {[%emt 0:01:16]} a5 {[%emt 0:00:29]} 13. Rab1 {[%emt 0:00:13]} Re8 {[%emt 0:00:55]} 14. Ba4 {[%emt 0:00:13]} Re7 {[%emt 0:00:22]} 15. Nd4 {[%emt 0:01:01]} Bxd4 {[%emt 0:00:36]} 16. Qxd4 {[%emt 0:00:05]} Nc5 {[%emt 0:00:11]} 17. Bb5 {[%emt 0:00:56]} a4 {[%emt 0:00:24]} 18. Rfe1 {[%emt 0:00:54]} Ba6 {[%emt 0:00:57]} 19. dxe6 {[%emt 0:01:12]} Nxe6 {[%emt 0:00:51]} 20. Qd2 {[%emt 0:00:22]} Bxb5 {[%emt 0:00:06]} 21. cxb5 {[%emt 0:00:02]} Nc5 {[%emt 0:00:07]} 22. Rbd1 {[%emt 0:01:23]} Qd7 {[%emt 0:01:24]} 23. f3 {[%emt 0:00:09]} Re6 {[%emt 0:00:26]} 24. Qd5 {[%emt 0:00:20]} Rae8 {[%emt 0:00:06]} 25. Qc6 {[%emt 0:00:31]} Qxc6 {[%emt 0:00:51]} 26. bxc6 {[%emt 0:00:01]} Ra8 {[%emt 0:00:00]} 27. Nd5 {[%emt 0:00:14]} Ra7 {[%emt 0:00:42]} 28. e5 {[%emt 0:00:09]} Kf8 {[%emt 0:00:12]} 29. exd6 {[%emt 0:00:14]} Rxd6 {[%emt 0:00:11]} 30. Nc3 {[%emt 0:00:29]} Rxd1 {[%emt 0:00:53]} 31. Rxd1 {[%emt 0:00:04]} Ne6 {[%emt 0:01:12]} 32. Rd5 {[%emt 0:01:31]} Ra5 {[%emt 0:02:06]} 33. Rxa5 {[%emt 0:00:24]} bxa5 {[%emt 0:00:01]} 34. Kf2 {[%emt 0:00:01]} Ke7 {[%emt 0:00:29]} 35. Nb5 {[%emt 0:00:01]} Nf4 {[%emt 0:00:05]} 36. g3 {[%emt 0:00:54]} Nd3+ {[%emt 0:00:02]} 37. Ke3 {[%emt 0:00:01]} Ne5 {[%emt 0:00:10]} 38. Ke4 {[%emt 0:00:07]} Nxc6 {[%emt 0:00:06]} 39. Kd5 {[%emt 0:00:04]} Kd7 {[%emt 0:00:06]} 40. Nc3 {[%emt 0:00:10]} Ne7+ {[%emt 0:00:10]} 41. Kc5 {[%emt 0:00:01]} c6 {[%emt 0:00:33]} 42. Kb6 {[%emt 0:00:18]} Nf5 {[%emt 0:00:13]} 43. Kxa5 {[%emt 0:00:12]} Nd4 {[%emt 0:00:09]} 44. f4 {[%emt 0:00:01]} h5 {[%emt 0:00:04]} 45. Kxa4 {[%emt 0:00:13]} c5 {[%emt 0:00:03]} 46. b4 {[%emt 0:00:05]} Kc6 {[%emt 0:00:08]} 47. Ka5 {[%emt 0:00:12]} Nc2 {[%emt 0:00:18]} 48. b5+ {[%emt 0:00:12]} Kb7 {[%emt 0:00:01]} 49. Ne4 {[%emt 0:00:15]} c4 {[%emt 0:00:23]} 50. Nd6+ {[%emt 0:00:12]} 1-0

[Event "FIDE Open World Rapid 2024"]
[Site "New York"]
[Date "2024.12.27"]
[Round "8.13"]
[White "Yu, Yangyi"]
[Black "Lazavik, Denis"]
[Result "1/2-1/2"]
[ECO "A22"]
[WhiteElo "2724"]
[BlackElo "2578"]
[Annotator "TA"]
[PlyCount "221"]
[EventDate "2024.12.14"]
[EventType "swiss"]
[EventCountry "USA"]
[SourceTitle "playchess.com"]
[Source "ChessBase"]
[SourceQuality "1"]
[TimeControl "900+10"]

{[%evp 9,221,-6,-10,-22,0,0,-1,-26,-29,-29,0,0,7,0,19,15,18,17,21,21,37,53,37,29,39,9,18,24,20,29,25,23,23,17,25,15,15,16,33,0,29,31,29,29,29,29,27,20,29,22,41,34,34,33,51,50,58,37,58,58,58,58,58,66,80,0,86,59,77,39,39,39,39,39,39,39,48,39,39,39,39,0,0,0,0,0,0,7,8,0,8,8,15,0,0,0,0,0,0,0,0,0,0,0,0,0,0,0,0,0,0,0,30,0,0,0,0,0,0,0,8,8,8,8,14,14,21,21,40,0,0,0,0,0,0,0,0,0,0,0,8,0,8,8,8,8,8,0,0,0,8,8,8,8,8,8,8,8,8,8,8,8,8,8,8,8,8,8,8,8,8,0,8,8,8,8,8,8,8,8,8,8,8,8,8,0,8,0,8,8,8,8,8,8,8,8,8,8,8,8,53,0,0,0,0,0,0,0,0,0,0,0,0,0]} 1. c4 {[%emt 0:00:02]} Nf6 {[%emt 0:00:02]} 2. Nc3 {[%emt 0:00:08]} e5 {[%emt 0:00:02]} 3. e3 {[%emt 0:00:03]} Bb4 {[%emt 0:00:05]} 4. Nd5 {[%emt 0:00:02]} Nxd5 {[%emt 0:00:09]} 5. cxd5 {[%emt 0:00:01]} O-O {[%emt 0:00:17]} 6. Bd3 {[%emt 0:00:03]} d6 {[%emt 0:00:50]} 7. a3 {[%emt 0:00:29]} Bc5 {[%emt 0:00:08]} 8. b4 {[%emt 0:00:01]} Bb6 {[%emt 0:00:03]} 9. Ne2 {[%emt 0:00:02]} Nd7 {[%emt 0:00:56]} 10. O-O {[%emt 0:00:06]} Nf6 {[%emt 0:00:05]} 11. Nc3 {[%emt 0:00:11]} c6 {[%emt 0:00:09]} 12. dxc6 {[%emt 0:01:17]} bxc6 {[%emt 0:00:02]} 13. Bb2 {[%emt 0:00:01]} a5 {[%emt 0:01:23]} 14. Qc2 {[%emt 0:01:14]} Ba6 {[%emt 0:03:22]} 15. Bxa6 {[%emt 0:01:21]} Rxa6 {[%emt 0:00:02]} 16. h3 {[%emt 0:00:53]} Qd7 {[%emt 0:00:26]} 17. Rfc1 {[%emt 0:00:55]} axb4 {[%emt 0:00:56]} 18. axb4 {[%emt 0:00:01]} Rxa1 {[%emt 0:00:02]} 19. Bxa1 {[%emt 0:00:42]} Ra8 {[%emt 0:00:12]} 20. Bb2 {[%emt 0:00:02]} h6 {[%emt 0:03:24]} 21. Ne4 {[%emt 0:00:02]} Nxe4 {[%emt 0:00:12]} 22. Qxe4 {[%emt 0:00:00]} Rc8 {[%emt 0:00:21]} 23. Qd3 {[%emt 0:01:04] With the idea Bxe5.} Rd8 {[%emt 0:01:17]} 24. Qe4 {[%emt 0:01:22]} c5 {[%emt 0:00:48]} 25. bxc5 {[%emt 0:00:36]} Bxc5 {[%emt 0:00:01]} 26. d4 {[%emt 0:02:30]} exd4 {[%emt 0:00:07]} 27. Bxd4 {[%emt 0:00:01]} Re8 {[%emt 0:00:25]} 28. Qd3 {[%emt 0:00:12]} Bxd4 {[%emt 0:00:09]} 29. Qxd4 $11 {[%emt 0:00:01][%mdl 4096] Endgame. KQR-KQR} g6 {[%emt 0:00:23]} 30. Rd1 {[%emt 0:00:25][%cal Od4f4]} Re6 {[%emt 0:00:08]} 31. Rb1 {[%emt 0:00:16]} Re8 {[%emt 0:00:25] Inhibits Rb8.} 32. Rb6 {[%emt 0:00:13]} d5 {[%emt 0:00:52]} 33. Qf4 {[%emt 0:00:59][%cal Ob6d6]} Qa7 {[%emt 0:00:04]} 34. Rb1 {[%emt 0:00:53]} h5 {[%emt 0:00:03]} 35. Rd1 {[%emt 0:00:07]} Qd7 {[%emt 0:01:01]} 36. Qg5 {[%emt 0:00:11]} Qd8 {[%emt 0:00:01]} 37. Qf4 {[%emt 0:01:01] White is more active.} (37. Qxd5 $16 Qxd5 38. Rxd5) 37... Qb8 {[%emt 0:00:47]} (37... Qd7 $1 $11) 38. Qf3 {[%emt 0:00:09]} ({Reject} 38. Rxd5 Qxf4 39. exf4 Re1+ 40. Kh2 Rf1 $11) 38... Rd8 {[%emt 0:00:03]} 39. Rxd5 {[%emt 0:01:17]} Qb1+ {[%emt 0:00:04]} 40. Kh2 {[%emt 0:00:00]} Qb8+ {[%emt 0:00:02]} 41. g3 {[%emt 0:00:02]} Rxd5 {[%emt 0:00:01]} 42. Qxd5 $14 {[%emt 0:00:01] KQ-KQ} h4 {[%emt 0:00:02]} 43. Qg5 {[%emt 0:00:20]} hxg3+ {[%emt 0:00:01]} 44. Qxg3 {[%emt 0:00:01]} Qb5 {[%emt 0:00:02]} 45. h4 {[%emt 0:00:07]} Qf5 {[%emt 0:00:07]} 46. Qb8+ {[%emt 0:00:27]} Kg7 {[%emt 0:00:05]} 47. Kg3 {[%emt 0:00:23]} Qd5 {[%emt 0:00:08]} 48. Qb2+ {[%emt 0:00:11]} Kg8 {[%emt 0:00:03]} 49. Qb8+ {[%emt 0:00:31]} Kg7 {[%emt 0:00:03]} 50. Qf4 {[%emt 0:00:15] [#] Hoping for Qd4+.} Qh1 {[%emt 0:00:15]} 51. Qe5+ {[%emt 0:00:03]} Kg8 {[%emt 0:00:02]} 52. Qd4 {[%emt 0:00:18]} Qg1+ {[%emt 0:00:22]} 53. Kf3 {[%emt 0:00:02]} Qh1+ {[%emt 0:00:22]} 54. Ke2 {[%emt 0:00:00]} Qg2 {[%emt 0:00:12]} 55. Qd8+ {[%emt 0:00:17]} Kg7 {[%emt 0:00:02]} 56. Qg5 {[%emt 0:00:03]} Qh1 {[%emt 0:00:04]} 57. Qe5+ {[%emt 0:00:05]} Kg8 {[%emt 0:00:02]} 58. Qf4 {[%emt 0:00:09]} Kg7 {[%emt 0:00:12]} 59. Qg5 {[%emt 0:00:08]} Kg8 {[%emt 0:00:27]} 60. Qf4 {[%emt 0:00:18]} Kg7 {[%emt 0:00:04]} 61. e4 {[%emt 0:00:20]} Qh3 {[%emt 0:00:16]} 62. Qe5+ {[%emt 0:00:19]} Kg8 {[%emt 0:00:02]} 63. Qg3 {[%emt 0:00:20]} Qe6 {[%emt 0:00:03]} 64. Kf3 {[%emt 0:00:05]} Qb3+ {[%emt 0:00:31]} 65. Kg2 {[%emt 0:00:03]} Qc4 {[%emt 0:00:07]} 66. Qb8+ {[%emt 0:00:07]} Kh7 {[%emt 0:00:06]} 67. Qe5 {[%emt 0:00:05]} Qe2 {[%emt 0:00:09]} 68. Qf4 {[%emt 0:00:12]} Kg7 {[%emt 0:00:08]} 69. e5 {[%emt 0:00:11]} Kg8 {[%emt 0:00:19]} 70. Qd4 {[%emt 0:00:09]} Qe1 {[%emt 0:00:22]} 71. Qd8+ {[%emt 0:00:14]} Kg7 {[%emt 0:00:01]} 72. Qf6+ {[%emt 0:00:18]} Kg8 {[%emt 0:00:01]} 73. Qd8+ {[%emt 0:00:47]} Kg7 {[%emt 0:00:02]} 74. Qd4 {[%emt 0:00:20]} Kg8 {[%emt 0:00:03]} 75. Qf4 {[%emt 0:00:05]} Kg7 {[%emt 0:00:13] [#]} 76. h5 $1 {[%emt 0:00:13]} gxh5 {[%emt 0:00:11]} 77. Qg5+ {[%emt 0:00:01]} Kf8 {[%emt 0:00:03]} 78. Qd8+ {[%emt 0:00:04]} Kg7 {[%emt 0:00:02]} 79. Qg5+ {[%emt 0:00:01]} Kf8 {[%emt 0:00:01]} 80. Qxh5 {[%emt 0:00:03]} Qe4+ {[%emt 0:00:20]} 81. Kg3 {[%emt 0:00:02]} Qe1 {[%emt 0:00:17]} 82. Qh6+ {[%emt 0:00:08]} Ke7 {[%emt 0:00:08]} 83. Qf6+ {[%emt 0:00:02]} Ke8 {[%emt 0:00:01]} 84. Qc6+ {[%emt 0:00:11]} Ke7 {[%emt 0:00:04]} 85. Qc5+ {[%emt 0:00:14]} Ke8 {[%emt 0:00:02]} 86. Kf4 {[%emt 0:01:06]} Qd2+ {[%emt 0:00:09]} 87. Qe3 {[%emt 0:00:01]} Qc2 {[%emt 0:00:13]} 88. Qd4 {[%emt 0:00:10]} Qc1+ {[%emt 0:00:11]} 89. Kf5 {[%emt 0:00:21]} Qc2+ {[%emt 0:00:01]} 90. Kf4 {[%emt 0:00:04]} Qc1+ {[%emt 0:00:02]} 91. Kf3 {[%emt 0:00:06]} Qh1+ {[%emt 0:00:29]} 92. Ke2 {[%emt 0:00:05]} Qb1 {[%emt 0:00:06]} 93. Qa4+ {[%emt 0:00:39]} Ke7 {[%emt 0:00:09]} 94. Qa3+ {[%emt 0:00:02]} Ke8 {[%emt 0:00:08]} 95. Qa8+ {[%emt 0:00:08]} Ke7 {[%emt 0:00:01]} 96. Qd5 {[%emt 0:00:13]} Qc2+ {[%emt 0:00:18]} 97. Ke3 {[%emt 0:00:02]} Qc1+ {[%emt 0:00:02]} 98. Ke2 {[%emt 0:00:11]} (98. Qd2 {simplifies} Qxd2+ 99. Kxd2 Ke6 100. f4) 98... Qc2+ {[%emt 0:00:02]} 99. Kf3 {[%emt 0:00:03]} Qf5+ {[%emt 0:00:17]} 100. Ke3 {[%emt 0:00:04]} Qg5+ {[%emt 0:00:01]} 101. Ke2 {[%emt 0:00:14]} Qg4+ {[%emt 0:00:03]} 102. Kf1 {[%emt 0:00:16]} Qh3+ {[%emt 0:00:06]} 103. Ke1 {[%emt 0:00:14]} Qc3+ {[%emt 0:00:02]} 104. Kd1 {[%emt 0:00:11]} Qb2 {[%emt 0:00:28]} 105. Qc5+ {[%emt 0:00:19]} (105. Qd6+ $14 Ke8 106. Qc5) 105... Ke6 $1 $11 {[%emt 0:00:46] The position is equal.} 106. Qc4+ {[%emt 0:00:41]} Kxe5 {[%emt 0:00:13]} 107. Qxf7 {[%emt 0:00:09] Intending Qg7+ and mate.} Qd4+ {[%emt 0:00:17]} 108. Ke2 {[%emt 0:00:04] Qg7+ is the strong threat.} Qe4+ {[%emt 0:00:01]} 109. Kf1 {[%emt 0:00:03]} Qh1+ {[%emt 0:00:02]} 110. Ke2 {[%emt 0:00:01]} Qe4+ {[%emt 0:00:01]} 111. Kf1 {[%emt 0:00:02] Weighted Error Value: White=0.08 (flawless) /Black=0.08 (flawless) .  Mistake:       	White=2     	Black=1      Inaccurate:     	White=7     	Black=3      OK:         	White=39    	Black=64     Best:        	White=1     	Black=3      Strong:       	---       	Black=1} 1/2-1/2